bitfinex-derivatives/quotes_BTCF0:USTF0_20250119
["timestamp","ask_amount","ask_price","bid_price","bid_amount"]
[1737298746604,0.278188,105220.0,105200.0,0.75989294]
[1737298748007,0.33630581,105220.0,105200.0,1.01244206]
[1737298748303,0.33630581,105220.0,105200.0,0.96484606]
[1737298748505,0.38389781,105220.0,105200.0,0.96484606]
[1737298748696,0.38389781,105220.0,105200.0,0.90672825]
[1737298749098,0.047592,105210.0,105200.0,0.89647394]
[1737298749307,0.10570981,105210.0,105200.0,0.89647394]
[1737298749605,0.33400981,105210.0,105200.0,0.53567394]
[1737298750797,0.047597,105200.0,105190.0,0.64440482]
[1737298750997,0.32571481,105200.0,105190.0,0.64392482]
[1737298751197,0.267597,105200.0,105190.0,0.64392482]
[1737298751406,0.047601,105190.0,105180.0,0.29153673]
[1737298751596,0.74533662,105190.0,105180.0,0.29153673]
[1737298753803,1.05734531,105190.0,105150.0,0.65431781]
[1737298754110,0.10573281,105160.0,105150.0,0.64382]
[1737298754305,0.10573281,105160.0,105150.0,0.2354]
[1737298754809,0.10573281,105160.0,105150.0,0.24545578]
[1737298755209,0.047615,105160.0,105150.0,0.24545578]
[1737298755510,0.047615,105160.0,105150.0,0.60625578]
[1737298758214,0.33683081,105170.0,105150.0,0.71199359]
[1737298758707,0.10572481,105180.0,105150.0,0.71199359]
[1737298758911,0.16313907,105180.0,105160.0,0.3608]
[1737298759212,0.16313807,105180.0,105160.0,0.3608]
[1737298759811,0.05811781,105170.0,105160.0,0.3608]
[1737298760111,0.16313807,105180.0,105160.0,0.3608]
[1737298760917,0.52393807,105180.0,105160.0,0.3608]
[1737298761108,0.04761,105170.0,105160.0,0.3608]
[1737298762816,0.16314007,105180.0,105160.0,0.3608]
[1737298763012,0.10572781,105170.0,105160.0,0.3608]
[1737298763318,0.047607,105180.0,105160.0,0.46653181]
[1737298763524,0.10572481,105180.0,105170.0,0.2214]
[1737298763819,0.46652481,105180.0,105170.0,0.2214]
[1737298764011,0.04761,105170.0,105160.0,0.3608]
[1737298764211,0.10572781,105170.0,105160.0,0.3608]
[1737298764418,0.047615,105160.0,105150.0,0.8176]
[1737298764625,0.16385062,105160.0,105150.0,0.8176]
[1737298765123,0.16385062,105160.0,105150.0,0.5962]
[1737298765521,0.10573281,105160.0,105150.0,0.2354]
[1737298766417,0.047615,105160.0,105150.0,0.2354]
[1737298766724,0.10573281,105160.0,105150.0,0.2354]
[1737298767828,0.10573281,105160.0,105150.0,0.5962]
[1737298768020,0.05811781,105170.0,105150.0,0.5962]
[1737298768222,0.10572981,105170.0,105150.0,0.5962]
[1737298770529,0.10572981,105170.0,105150.0,0.65431781]
[1737298770827,0.10572981,105170.0,105150.0,0.70193681]
[1737298771329,0.11364753,105180.0,105160.0,0.52465062]
[1737298771524,0.11364753,105180.0,105170.0,0.69192781]
[1737298771722,0.11364753,105180.0,105170.0,0.84941]
[1737298771915,0.95783762,105190.0,105170.0,0.90752781]
[1737298772122,0.72323762,105190.0,105180.0,0.2095]
[1737298772322,0.36243762,105190.0,105180.0,0.2095]
[1737298772525,0.37254716,105190.0,105170.0,0.3608]
[1737298772726,0.10572381,105180.0,105170.0,0.3608]
[1737298773433,0.04761,105170.0,105160.0,0.5703]
[1737298773627,0.10572781,105170.0,105160.0,0.58001735]
[1737298773823,0.10572781,105170.0,105160.0,0.5703]
[1737298775328,0.172786,105190.0,105170.0,0.04761]
[1737298775529,0.172786,105190.0,105180.0,0.3608]
[1737298775530,0.11507446,105190.0,105180.0,0.3608]
[1737298775724,0.14307028,105190.0,105180.0,1.09094162]
[1737298775925,0.17036534,105200.0,105190.0,0.047601]
[1737298776227,0.17036534,105200.0,105190.0,0.67841881]
[1737298777021,0.11367387,105220.0,105200.0,0.047596]
[1737298777224,0.11367387,105220.0,105210.0,0.41891781]
[1737298777420,0.11367387,105220.0,105210.0,0.5688]
[1737298777833,0.11367387,105220.0,105210.0,0.62691781]
[1737298778024,0.11367387,105220.0,105210.0,0.67450981]
[1737298778225,0.11367387,105220.0,105210.0,0.88380981]
[1737298778428,0.22936832,105230.0,105210.0,0.88380981]
[1737298778632,0.22936832,105230.0,105220.0,0.1996]
[1737298779030,0.22936832,105230.0,105220.0,0.5604]
[1737298779436,0.11569445,105230.0,105220.0,0.1996]
[1737298781438,0.05757664,105230.0,105220.0,0.1996]
[1737298781638,0.11569445,105230.0,105220.0,0.1996]
[1737298781838,0.05757664,105230.0,105220.0,0.1996]
[1737298782035,0.04759,105220.0,105200.0,0.58669689]
[1737298782231,0.10570981,105210.0,105200.0,0.79529689]
[1737298782427,0.10570981,105210.0,105200.0,0.58669689]
[1737298782835,0.46650981,105210.0,105200.0,0.22589689]
[1737298783140,0.047597,105200.0,105190.0,0.22589689]
[1737298783334,0.52463262,105200.0,105190.0,0.22589689]
[1737298783933,0.52463262,105200.0,105180.0,0.5694]
[1737298784228,0.05811781,105190.0,105170.0,0.44282309]
[1737298784427,0.05811781,105190.0,105170.0,0.22732309]
[1737298784428,0.10572381,105180.0,105170.0,0.22732309]
[1737298784640,0.047606,105180.0,105170.0,0.22732309]
[1737298784937,0.047606,105180.0,105170.0,0.58812309]
[1737298785133,0.047606,105180.0,105170.0,0.3622262]
[1737298785339,0.047606,105180.0,105170.0,0.42034401]
[1737298785536,0.047606,105180.0,105170.0,0.3622262]
[1737298786340,0.31172081,105190.0,105170.0,0.42034401]
[1737298786533,0.253603,105190.0,105180.0,0.3608]
[1737298790240,0.48442077,105200.0,105180.0,0.41891781]
[1737298790543,0.16127187,105200.0,105190.0,0.41891781]
[1737298790729,0.16127187,105200.0,105190.0,0.62221781]
[1737298790934,0.21938968,105200.0,105190.0,0.2033]
[1737298791134,0.21938968,105200.0,105190.0,0.5641]
[1737298791336,0.10571581,105200.0,105190.0,0.5641]
[1737298792044,0.047598,105200.0,105190.0,0.5641]
[1737298792235,0.10571581,105200.0,105190.0,0.5641]
[1737298792436,0.69053739,105210.0,105190.0,0.62221781]
[1737298792740,0.7962492,105210.0,105190.0,0.62221781]
[1737298793340,0.37733139,105210.0,105190.0,0.62221781]
[1737298793644,0.31191181,105210.0,105190.0,0.62221781]
[1737298795645,0.31191181,105210.0,105190.0,0.5641]
[1737298795843,0.31191181,105210.0,105190.0,0.66981881]
[1737298796037,0.253794,105210.0,105190.0,0.88461881]
[1737298796241,0.047594,105210.0,105200.0,0.41891781]
[1737298796637,0.047594,105210.0,105200.0,0.3608]
[1737298796842,0.37540455,105220.0,105200.0,0.41891781]
[1737298797141,0.72646287,105220.0,105210.0,0.05811781]
[1737298797337,0.36566287,105220.0,105210.0,0.3608]
[1737298797537,0.36566287,105220.0,105200.0,0.46651381]
[1737298798447,0.251989,105220.0,105200.0,0.46651381]
[1737298799045,0.31010681,105220.0,105200.0,0.46651381]
[1737298799946,0.31010681,105220.0,105200.0,0.41891781]
[1737298800341,0.26251781,105220.0,105200.0,0.3608]
[1737298800743,0.31010781,105220.0,105200.0,0.3608]
[1737298801041,0.35769881,105220.0,105200.0,0.3608]
[1737298801241,0.31010781,105220.0,105200.0,0.3608]
[1737298801441,0.31010781,105220.0,105200.0,0.41891781]
[1737298802041,0.42378168,105220.0,105200.0,0.41891781]
[1737298802249,0.11367387,105220.0,105210.0,0.46650981]
[1737298802548,0.11367387,105220.0,105210.0,0.68130981]
[1737298802846,0.047584,105230.0,105210.0,0.68130981]
[1737298803051,0.047584,105230.0,105220.0,0.3608]
[1737298803437,0.10570181,105230.0,105220.0,0.3608]
[1737298804751,0.21937568,105230.0,105220.0,0.3608]
[1737298804936,0.21937568,105230.0,105210.0,0.63371781]
[1737298805644,0.21937568,105230.0,105210.0,0.5756]
[1737298806444,0.16125787,105230.0,105210.0,0.5756]
[1737298806650,0.16382362,105220.0,105200.0,0.59666447]
[1737298806836,0.25251781,105210.0,105200.0,0.59666447]
[1737298807039,0.1944,105210.0,105200.0,0.59666447]
[1737298807240,0.1944,105210.0,105200.0,0.65478228]
[1737298807757,0.047588,105220.0,105200.0,0.76049609]
[1737298808055,0.41377568,105230.0,105210.0,0.41891781]
[1737298808552,0.35565787,105230.0,105220.0,0.3608]
[1737298808750,0.35565787,105230.0,105220.0,0.5692]
[1737298809146,0.41377568,105230.0,105220.0,0.5692]
[1737298809447,0.41377568,105230.0,105220.0,0.2084]
[1737298809843,0.047589,105220.0,105200.0,0.59666447]
[1737298810043,0.05811781,105210.0,105200.0,0.79509689]
[1737298810944,0.10570681,105220.0,105200.0,0.79509689]
[1737298811150,0.16126287,105220.0,105200.0,0.8532147]
[1737298811446,0.11367387,105220.0,105210.0,0.3608]
[1737298811849,0.17179168,105220.0,105200.0,0.9008097]
[1737298812051,0.05811781,105210.0,105200.0,0.79509689]
[1737298812756,0.09612781,105210.0,105200.0,0.79509689]
[1737298813051,0.03801,105210.0,105200.0,0.79509689]
[1737298813252,0.08511,105210.0,105200.0,0.79509689]
[1737298813447,0.09271,105210.0,105200.0,0.79509689]
[1737298814154,0.09768,105210.0,105200.0,0.79509689]
[1737298814450,0.145272,105210.0,105200.0,0.79509689]
[1737298815755,0.145272,105210.0,105200.0,0.43429689]
[1737298816052,0.145272,105210.0,105200.0,0.79509689]
[1737298816852,0.20338981,105210.0,105200.0,0.79509689]
[1737298818147,0.56418981,105210.0,105200.0,0.43429689]
[1737298818554,0.56418981,105210.0,105200.0,0.22589689]
[1737298818755,0.94648981,105210.0,105200.0,0.22589689]
[1737298819157,0.58568981,105210.0,105200.0,0.22589689]
[1737298819658,0.69936368,105210.0,105190.0,0.59681541]
[1737298819859,0.69936368,105210.0,105190.0,0.65493322]
[1737298820058,1.06016368,105210.0,105190.0,0.65493322]
[1737298820259,0.69936368,105210.0,105190.0,0.65493322]
[1737298820659,0.69936368,105210.0,105190.0,0.87906957]
[1737298821361,0.70696368,105210.0,105190.0,0.87906957]
[1737298822259,0.05811781,105200.0,105190.0,0.87906957]
[1737298822555,0.16383262,105200.0,105190.0,0.86895105]
[1737298822762,0.16383262,105200.0,105190.0,0.50815105]
[1737298822763,0.66161481,105200.0,105190.0,0.50815105]
[1737298823060,0.71973262,105200.0,105190.0,0.50815105]
[1737298823361,0.74349262,105200.0,105190.0,0.50815105]
[1737298823854,0.85716649,105200.0,105190.0,0.22589689]
[1737298824056,0.85716649,105200.0,105190.0,0.08425354]
[1737298824963,0.49636649,105200.0,105190.0,0.08425354]
[1737298825156,0.43824868,105200.0,105190.0,0.08425354]
[1737298825557,0.63714487,105200.0,105180.0,0.55]
[1737298825765,0.58954787,105200.0,105180.0,0.65572281]
[1737298826159,0.58954787,105200.0,105180.0,0.86072281]
[1737298826365,0.58954787,105200.0,105180.0,0.802605]
[1737298826566,0.58954787,105200.0,105180.0,0.86072281]
[1737298826765,0.27697781,105200.0,105180.0,0.86072281]
[1737298827165,0.27697781,105200.0,105190.0,0.3608]
[1737298827366,0.02376,105200.0,105190.0,0.41891781]
[1737298827565,0.02376,105200.0,105190.0,0.46651881]
[1737298827968,0.02376,105200.0,105190.0,0.408401]
[1737298828373,0.02376,105200.0,105190.0,0.3608]
[1737298828770,0.08187781,105200.0,105190.0,0.3608]
[1737298829072,0.13999562,105200.0,105190.0,0.3608]
[1737298829271,0.13999562,105200.0,105180.0,1.04700845]
[1737298829272,0.18759362,105200.0,105180.0,1.04700845]
[1737298829472,0.05811781,105190.0,105180.0,1.04700845]
[1737298830376,0.05811781,105190.0,105180.0,1.03725416]
[1737298830671,0.10571881,105190.0,105180.0,0.28225416]
[1737298830879,0.10571881,105190.0,105180.0,0.3608]
[1737298831578,0.10571881,105190.0,105170.0,0.83925416]
[1737298831781,0.10571881,105190.0,105180.0,0.3608]
[1737298831974,0.25336651,105200.0,105170.0,0.90712168]
[1737298832175,0.25336651,105200.0,105180.0,0.3608]
[1737298832481,0.25336651,105200.0,105180.0,0.41891781]
[1737298832677,0.25336651,105200.0,105180.0,0.5582]
[1737298833177,0.24341036,105200.0,105180.0,0.61631781]
[1737298833379,0.13769555,105200.0,105190.0,0.3608]
[1737298833778,0.13769555,105200.0,105190.0,0.41891781]
[1737298833978,0.41288006,105210.0,105190.0,0.41891781]
[1737298834174,0.24251472,105210.0,105200.0,0.46651481]
[1737298834380,0.24251472,105210.0,105200.0,0.52463262]
[1737298835075,0.10031,105210.0,105200.0,0.74876897]
[1737298836875,0.10031,105210.0,105200.0,0.69065116]
[1737298837286,0.10031,105210.0,105200.0,0.87615116]
[1737298837586,0.10031,105210.0,105200.0,0.93426897]
[1737298837977,0.10981,105210.0,105200.0,0.93426897]
[1737298841488,0.10981,105210.0,105200.0,0.99238678]
[1737298841684,0.14363091,105230.0,105220.0,0.047588]
[1737298841983,0.14363091,105230.0,105220.0,0.769188]
[1737298842179,0.14363091,105230.0,105220.0,0.82730581]
[1737298842788,0.18164091,105230.0,105220.0,0.82730581]
[1737298842989,0.11901619,105230.0,105220.0,0.769188]
[1737298843183,0.11901619,105230.0,105220.0,0.7216]
[1737298843491,0.11901619,105230.0,105210.0,1.44990838]
[1737298843691,0.11901619,105230.0,105220.0,0.3608]
[1737298844082,0.177134,105230.0,105220.0,0.3608]
[1737298844380,0.177134,105230.0,105210.0,0.83009798]
[1737298844581,0.05811781,105220.0,105210.0,0.83009798]
[1737298844987,0.71890019,105230.0,105210.0,0.83009798]
[1737298845290,1.137818,105230.0,105210.0,0.83009798]
[1737298845490,0.777018,105230.0,105210.0,0.83009798]
[1737298845688,0.729434,105230.0,105210.0,0.60596163]
[1737298845990,0.11901619,105230.0,105220.0,0.41891781]
[1737298846187,0.11901619,105230.0,105220.0,0.3608]
[1737298846386,0.12661619,105230.0,105220.0,0.46650581]
[1737298846578,0.0152,105230.0,105220.0,0.52462362]
[1737298846782,0.14220472,105250.0,105230.0,0.04758]
[1737298847087,0.20032253,105260.0,105240.0,0.79371781]
[1737298847279,0.20032253,105260.0,105240.0,0.7356]
[1737298847678,0.20032253,105260.0,105250.0,0.3608]
[1737298847878,0.27402253,105260.0,105240.0,0.7356]
[1737298848078,0.21590472,105260.0,105240.0,0.84129481]
[1737298848288,0.21590472,105260.0,105250.0,0.41891781]
[1737298848682,0.21590472,105260.0,105250.0,0.46649181]
[1737298849086,0.0737,105260.0,105250.0,0.46649181]
[1737298849588,0.31257006,105280.0,105250.0,0.46649181]
[1737298849888,0.37068787,105280.0,105270.0,0.3608]
[1737298850088,1.04505632,105290.0,105270.0,0.3608]
[1737298850289,0.05811781,105280.0,105270.0,0.3608]
[1737298850685,0.10369781,105280.0,105270.0,0.3608]
[1737298852187,0.04558,105280.0,105270.0,0.3608]
[1737298852887,0.10369781,105280.0,105270.0,0.3608]
[1737298854096,0.04558,105280.0,105270.0,0.3608]
[1737298856799,0.04558,105280.0,105270.0,0.37077027]
[1737298856996,0.04558,105280.0,105270.0,0.61638808]
[1737298857195,0.04558,105280.0,105270.0,0.55827027]
[1737298857395,0.04558,105280.0,105270.0,0.61638808]
[1737298857590,0.03799,105280.0,105270.0,1.08287089]
[1737298857798,0.19752566,105290.0,105270.0,1.21630589]
[1737298857998,0.00142566,105290.0,105280.0,0.52459662]
[1737298858708,0.15811781,105300.0,105280.0,0.408361]
[1737298858899,0.05811781,105290.0,105280.0,0.3608]
[1737298859798,0.20368781,105300.0,105280.0,0.3608]
[1737298859993,0.20368781,105300.0,105290.0,0.3608]
[1737298860400,0.14557,105300.0,105290.0,0.3608]
[1737298860702,0.20368781,105300.0,105290.0,0.3608]
[1737298861101,0.26180562,105300.0,105290.0,0.3608]
[1737298861302,0.20368781,105300.0,105290.0,0.3608]
[1737298862402,0.26180562,105300.0,105280.0,0.3608]
[1737298862603,0.05811781,105290.0,105280.0,0.3608]
[1737298865107,0.05811781,105290.0,105280.0,0.4081]
[1737298865710,0.41891781,105290.0,105280.0,0.0473]
[1737298866809,0.52459162,105290.0,105280.0,0.0473]
[1737298867114,0.46647381,105290.0,105280.0,0.0473]
[1737298868011,0.52459162,105290.0,105280.0,0.0473]
[1737298868314,0.52459162,105290.0,105280.0,0.05229]
[1737298871013,0.47622797,105290.0,105280.0,0.05229]
[1737298871414,0.47622797,105290.0,105270.0,0.35743736]
[1737298871809,0.1044,105280.0,105270.0,0.35743736]
[1737298872013,0.1044,105280.0,105270.0,0.40500236]
[1737298873018,0.16251781,105280.0,105270.0,0.40500236]
[1737298873415,0.16251781,105280.0,105270.0,0.35743736]
[1737298873613,0.26819662,105280.0,105250.0,0.3608]
[1737298873814,0.11623562,105260.0,105240.0,0.36222521]
[1737298874123,0.16821781,105250.0,105240.0,0.36222521]
[1737298874302,0.1101,105250.0,105240.0,0.36222521]
[1737298874506,0.16821781,105250.0,105240.0,0.36222521]
[1737298875708,0.21579181,105250.0,105240.0,0.36222521]
[1737298876314,0.21579181,105250.0,105240.0,0.00142521]
[1737298876721,0.22339181,105250.0,105240.0,0.00142521]
[1737298877316,0.36559653,105250.0,105240.0,0.00142521]
[1737298879318,0.36559653,105250.0,105240.0,0.36222521]
[1737298879723,0.36559653,105250.0,105240.0,0.00142521]
[1737298880324,0.22339181,105250.0,105240.0,0.00142521]
[1737298880721,0.0076,105250.0,105240.0,0.42034302]
[1737298880923,0.11329181,105250.0,105240.0,0.36222521]
[1737298881116,0.22729181,105250.0,105240.0,0.00142521]
[1737298881724,0.047579,105240.0,105230.0,0.5767]
[1737298882026,0.10569681,105240.0,105230.0,0.5767]
[1737298883519,0.16381462,105240.0,105230.0,0.1114]
[1737298883716,0.047583,105230.0,105220.0,0.37051259]
[1737298883919,0.10570081,105230.0,105220.0,0.37051259]
[1737298886237,0.05811781,105240.0,105220.0,0.4762184]
[1737298886438,0.05811781,105240.0,105230.0,0.3608]
[1737298886642,0.05811781,105240.0,105220.0,0.41810059]
[1737298886846,0.16381862,105230.0,105220.0,0.00971259]
[1737298887144,0.11330081,105230.0,105210.0,0.22631212]
[1737298887336,0.11330081,105230.0,105210.0,0.63470412]
[1737298887636,0.06571781,105230.0,105220.0,0.3608]
[1737298887839,0.11330181,105230.0,105210.0,0.3608]
[1737298888137,0.16741781,105220.0,105210.0,0.3608]
[1737298888539,0.1093,105220.0,105210.0,0.37071178]
[1737298889538,0.22710181,105230.0,105210.0,0.37071178]
[1737298889738,0.22710181,105230.0,105220.0,0.3608]
[1737298890235,0.22710181,105230.0,105210.0,0.37071178]
[1737298890633,0.05811781,105220.0,105210.0,0.37071178]
[1737298891344,0.11623562,105220.0,105210.0,0.37071178]
[1737298891548,0.16382362,105220.0,105210.0,0.3608]
[1737298892237,0.047592,105210.0,105200.0,0.22822552]
[1737298892438,0.27232762,105210.0,105200.0,0.00142552]
[1737298892938,0.27232762,105210.0,105190.0,0.58711212]
[1737298893138,0.11623562,105200.0,105190.0,0.58711212]
[1737298894550,0.11623562,105200.0,105190.0,0.3608]
[1737298895351,0.05811781,105200.0,105190.0,0.3608]
[1737298896048,0.11623562,105200.0,105190.0,0.3608]
[1737298897045,0.11623562,105200.0,105180.0,0.75663829]
[1737298897046,0.16383262,105200.0,105180.0,0.75663829]
[1737298897240,0.05811781,105190.0,105180.0,0.74672488]
[1737298897948,0.05811781,105190.0,105180.0,0.63232488]
[1737298898544,0.05811781,105190.0,105180.0,0.4626]
[1737298899244,0.03802,105190.0,105180.0,0.4626]
[1737298899750,0.09613781,105190.0,105180.0,0.4626]
[1737298903051,0.09613781,105190.0,105180.0,0.63232488]
[1737298903452,0.10373781,105190.0,105180.0,0.63232488]
[1737298905663,0.11133781,105190.0,105180.0,0.4626]
[1737298910751,0.05322,105190.0,105180.0,0.510206]
[1737298910950,0.05322,105190.0,105180.0,0.61106139]
[1737298911350,0.05322,105190.0,105180.0,0.64439791]
[1737298911760,0.05322,105190.0,105180.0,0.64737438]
[1737298912963,0.05322,105190.0,105180.0,0.6473791]
[1737298913258,0.05322,105190.0,105180.0,0.75898617]
[1737298913460,0.11133781,105190.0,105180.0,0.67804365]
[1737298913658,0.21705662,105190.0,105180.0,0.5335012]
[1737298914164,0.15893881,105190.0,105180.0,0.5335012]
[1737298914357,0.15893881,105190.0,105180.0,0.36377632]
[1737298914862,0.11133781,105190.0,105180.0,0.00297632]
[1737298915260,0.11133781,105190.0,105180.0,0.36377632]
[1737298917257,0.11133781,105190.0,105180.0,0.36377671]
[1737298917863,0.13509781,105190.0,105180.0,0.36377671]
[1737298918361,0.13509781,105190.0,105180.0,0.53350159]
[1737298918362,0.24858867,105190.0,105180.0,0.53350159]
[1737298918749,0.24858867,105190.0,105180.0,0.5382643]
[1737298920563,0.22715634,105190.0,105180.0,0.76576714]
[1737298920770,0.22715634,105190.0,105180.0,0.76457645]
[1737298921655,0.33287515,105190.0,105180.0,0.40377645]
[1737298921862,0.27475734,105190.0,105180.0,0.40377645]
[1737298922464,0.27475734,105190.0,105180.0,0.76457645]
[1737298922659,0.22715634,105190.0,105180.0,0.76457645]
[1737298923561,0.36936106,105190.0,105180.0,0.59485157]
[1737298923754,0.36936106,105190.0,105180.0,0.60378178]
[1737298923952,0.36936106,105190.0,105180.0,0.60378184]
[1737298924558,0.36936106,105190.0,105180.0,0.59485163]
[1737298924968,0.37929492,105190.0,105180.0,0.59485163]
[1737298925763,0.47046106,105190.0,105180.0,0.59485163]
[1737298925964,0.47046106,105190.0,105180.0,0.70338144]
[1737298926263,0.47046106,105190.0,105180.0,0.98587549]
[1737298926264,0.32825634,105190.0,105180.0,0.98587549]
[1737298927460,0.32825634,105190.0,105180.0,1.0150204]
[1737298928165,0.27013853,105190.0,105180.0,1.07313821]
[1737298928369,0.27013853,105190.0,105180.0,1.1187204]
[1737298928770,0.27013853,105190.0,105180.0,1.1948477]
[1737298928972,0.27013853,105190.0,105180.0,1.23651805]
[1737298929178,0.32825634,105190.0,105180.0,1.16039075]
[1737298929563,0.32825634,105190.0,105180.0,1.11872019]
[1737298929770,0.32825634,105190.0,105180.0,1.0060902]
[1737298930267,0.43397515,105190.0,105180.0,0.5456902]
[1737298930463,0.047606,105180.0,105170.0,0.33924541]
[1737298930662,0.52464162,105180.0,105170.0,0.33924541]
[1737298931471,0.047615,105160.0,105150.0,0.34089782]
[1737298931675,0.52465062,105160.0,105150.0,0.34089782]
[1737298932158,0.56268062,105160.0,105150.0,0.34089782]
[1737298932959,0.047622,105150.0,105130.0,0.37263327]
[1737298933175,0.11623562,105140.0,105130.0,0.3608]
[1737298933571,0.22313562,105140.0,105130.0,0.3608]
[1737298934972,0.22313562,105140.0,105120.0,0.37263327]
[1737298934973,0.63156362,105140.0,105120.0,0.37263327]
[1737298935172,0.05811781,105130.0,105110.0,0.47293327]
[1737298935367,0.05811781,105120.0,105110.0,0.50390908]
[1737298935762,0.05811781,105130.0,105110.0,0.54560819]
[1737298936081,0.05811781,105130.0,105120.0,0.3608]
[1737298936372,0.10574681,105130.0,105110.0,0.51463238]
[1737298936571,0.11623562,105120.0,105110.0,0.4036096]
[1737298936766,0.11623562,105120.0,105110.0,0.3608]
[1737298936961,0.05811781,105120.0,105100.0,0.7895667]
[1737298937166,0.05811781,105120.0,105100.0,0.83021402]
[1737298937366,0.05811781,105120.0,105100.0,0.83017067]
[1737298937670,0.05811781,105120.0,105100.0,0.87187239]
[1737298937872,0.05811781,105120.0,105100.0,1.09835707]
[1737298938875,0.15891781,105120.0,105100.0,1.09835707]
[1737298939080,0.05811781,105110.0,105100.0,0.87187219]
[1737298939669,0.05811781,105110.0,105100.0,0.75663876]
[1737298940474,0.05811781,105110.0,105100.0,0.76140475]
[1737298940777,0.15891781,105120.0,105100.0,0.71970303]
[1737298941275,0.05811781,105110.0,105100.0,0.71970303]
[1737298942575,0.05811781,105110.0,105100.0,0.72268181]
[1737298943667,0.05811781,105110.0,105100.0,0.36188181]
[1737298944072,0.05811781,105110.0,105100.0,0.3767765]
[1737298945172,0.05811781,105110.0,105100.0,0.37675669]
[1737298945678,0.05811781,105110.0,105100.0,0.37675501]
[1737298945881,0.05811781,105110.0,105100.0,0.31962868]
[1737298946280,0.05811781,105110.0,105100.0,0.36186044]
[1737298946672,0.05811781,105110.0,105100.0,0.3248548]
[1737298946874,0.06572781,105110.0,105100.0,0.32433998]
[1737298947076,0.06572781,105110.0,105100.0,0.30944531]
[1737298948188,0.06572781,105110.0,105100.0,0.67024531]
[1737298948383,0.00761,105110.0,105100.0,0.77110735]
[1737298948681,0.00761,105110.0,105100.0,0.81874935]
[1737298948881,0.06572781,105110.0,105100.0,0.72788351]
[1737298949077,0.00761,105110.0,105100.0,0.36708351]
[1737298949279,0.00761,105110.0,105100.0,0.72788351]
[1737298950385,0.04566,105110.0,105100.0,0.72788351]
[1737298950577,0.10377781,105110.0,105100.0,0.36708351]
[1737298951383,0.10377781,105110.0,105100.0,0.72788351]
[1737298951579,0.10377781,105110.0,105100.0,0.72788937]
[1737298951783,0.04566,105110.0,105100.0,0.72788937]
[1737298951989,0.10377781,105110.0,105100.0,0.72788937]
[1737298952481,0.04566,105110.0,105100.0,0.76959231]
[1737298952979,0.04566,105110.0,105100.0,0.77554663]
[1737298953284,0.04566,105110.0,105100.0,0.73384369]
[1737298954285,0.10377781,105110.0,105100.0,0.71894972]
[1737298954489,0.20953362,105110.0,105100.0,0.49356688]
[1737298954679,0.39703362,105110.0,105100.0,0.1137025]
[1737298954987,0.33891581,105110.0,105100.0,0.10825017]
[1737298956181,0.33891581,105110.0,105100.0,0.10774559]
[1737298957086,0.33891581,105110.0,105100.0,0.1137037]
[1737298957989,0.33891581,105110.0,105100.0,0.10774559]
[1737298958191,0.36269581,105110.0,105100.0,0.10774559]
[1737298958782,0.36269581,105110.0,105100.0,0.46854566]
[1737298959382,0.36269581,105110.0,105100.0,0.10774555]
[1737298960883,0.36269581,105110.0,105100.0,0.10774582]
[1737298961790,0.37030581,105110.0,105100.0,0.10774582]
[1737298961978,0.73110581,105110.0,105100.0,0.10774582]
[1737298962178,0.78922362,105110.0,105100.0,0.10774582]
[1737298963492,0.73110581,105110.0,105100.0,0.10774582]
[1737298964193,0.37030581,105110.0,105100.0,0.10774582]
[1737298964580,0.37030581,105110.0,105100.0,0.0038522]
[1737298965589,0.54139975,105110.0,105100.0,0.0038522]
[1737298965785,0.96031756,105110.0,105100.0,0.0038522]
[1737298966493,0.74210232,105110.0,105100.0,0.0038522]
[1737298966684,0.68398451,105110.0,105100.0,0.0038522]
[1737298966885,1.04478451,105110.0,105100.0,0.0038522]
[1737298967288,1.04478451,105110.0,105100.0,0.00297937]
[1737298967790,0.68398451,105110.0,105100.0,0.00297937]
[1737298968190,0.66253353,105110.0,105100.0,0.00297937]
[1737298968601,1.02333353,105110.0,105100.0,0.00297937]
[1737298968897,1.08145134,105110.0,105100.0,0.00297934]
[1737298969290,1.08906134,105110.0,105100.0,0.00297934]
[1737298970596,1.08906134,105110.0,105100.0,0.00297943]
[1737298970784,0.94647658,105110.0,105100.0,0.00297943]
[1737298972194,0.70085877,105110.0,105100.0,0.00348693]
[1737298972492,0.75897658,105110.0,105100.0,0.00297943]
[1737298972699,0.37396756,105110.0,105100.0,0.00297939]
[1737298972891,0.31584975,105110.0,105100.0,0.00297939]
[1737298973295,0.26821175,105110.0,105100.0,0.00297939]
[1737298973691,0.26821175,105110.0,105100.0,0.01191713]
[1737298974095,0.23973354,105110.0,105100.0,0.01191713]
[1737298974800,0.23973354,105110.0,105100.0,0.00774618]
[1737298975190,0.23973354,105110.0,105100.0,0.00774588]
[1737298975394,0.28737154,105110.0,105100.0,0.00774588]
[1737298976298,0.28737154,105110.0,105100.0,0.07434588]
[1737298976900,0.28737154,105110.0,105100.0,0.11008588]
[1737298977600,0.28737154,105110.0,105100.0,0.47088588]
[1737298977998,0.23973354,105110.0,105100.0,0.47088588]
[1737298978207,0.23973354,105110.0,105100.0,0.47684429]
[1737298978403,0.18161573,105110.0,105100.0,0.66204429]
[1737298978603,0.23973354,105110.0,105100.0,0.67098145]
[1737298978998,0.20994327,105110.0,105100.0,0.67098145]
[1737298979303,0.25758127,105110.0,105100.0,0.66502304]
[1737298979499,0.25758127,105110.0,105100.0,0.29528588]
[1737298979802,0.22909367,105110.0,105100.0,0.37048935]
[1737298980695,0.64801148,105110.0,105100.0,0.27958935]
[1737298980890,0.67649908,105110.0,105100.0,0.11008588]
[1737298981799,0.67649908,105110.0,105100.0,0.1100865]
[1737298982097,0.70497729,105110.0,105100.0,0.1100865]
[1737298985801,0.47576554,105110.0,105100.0,0.11008665]
[1737298986304,0.53388335,105110.0,105100.0,0.11008665]
[1737298987298,0.47576554,105110.0,105100.0,0.11008665]
[1737298988207,0.53388335,105110.0,105100.0,0.11058694]
[1737298988403,0.70527268,105110.0,105100.0,0.28009041]
[1737298989804,0.70527268,105110.0,105100.0,0.28009048]
[1737298990804,0.70527268,105110.0,105100.0,0.27959015]
[1737298991494,0.53388335,105110.0,105100.0,0.27959015]
[1737298992205,0.53388335,105110.0,105100.0,0.28009048]
[1737298992509,0.70527268,105110.0,105100.0,0.28009048]
[1737298992909,0.70527268,105110.0,105100.0,0.27959015]
[1737298993217,0.70527268,105110.0,105100.0,0.28604992]
[1737298993602,0.64715487,105110.0,105100.0,0.28604992]
[1737298994006,0.47576554,105110.0,105100.0,0.11654645]
[1737298994202,0.47576554,105110.0,105100.0,0.11604612]
[1737298994803,0.47576554,105110.0,105100.0,0.11654649]
[1737298995402,0.47576554,105110.0,105100.0,0.28604925]
[1737298995809,0.11496554,105110.0,105100.0,0.28604925]
[1737298996110,0.11496554,105110.0,105100.0,0.28554891]